fUSD/lending_fUSD_20250806
["ID","MTS","AMOUNT","RATE_DAILY","PERIOD"]
[377577480,1754445140030,-1050.13,0.00036986,14]
[377577481,1754445140040,-851.23,0.00036986,14]
[377577482,1754445140050,-1371.38,0.00036986,14]
[377577483,1754445140059,-400.0,0.00036986,14]
[377577484,1754445140068,-916.61,0.00036986,14]
[377577485,1754445140078,-653.65,0.00036986,14]
[377577486,1754445140087,-1116.51,0.00036986,14]
[377577487,1754445140096,-590.74,0.00036986,2]
[377577488,1754445140107,-732.25,0.00036986,14]
[377577489,1754445140116,-400.0,0.00036986,14]
[377577490,1754445140125,-475.92,0.00036986,14]
[377577491,1754445140135,-770.34,0.00036986,14]
[377577492,1754445140144,-591.46,0.00036986,14]
[377577493,1754445140152,-400.0,0.00036986,14]
[377577494,1754445140162,-1462.8,0.00036986,14]
[377577495,1754445140172,-400.0,0.00036986,14]
[377577496,1754445140181,-1009.21,0.00036986,14]
[377577497,1754445140190,-400.0,0.00036986,14]
[377577498,1754445140199,-523.26,0.00036986,14]
[377577499,1754445140209,-2930.75,0.00036986,14]
[377577500,1754445140219,-1931.17,0.00036986,14]
[377577501,1754445140228,-400.0,0.00036986,14]
[377577502,1754445140238,-1049.79,0.00036986,14]
[377577503,1754445140247,-498.81,0.00036986,14]
[377577504,1754445140256,-434.13,0.00036986,14]
[377577505,1754445140266,-1830.96,0.00036986,14]
[377577506,1754445140276,-400.0,0.00036986,14]
[377577507,1754445140285,-1265.66,0.00036986,14]
[377577508,1754445140295,-400.0,0.00036986,14]
[377577509,1754445140304,-151.0,0.00036986,7]
[377577510,1754445140314,-1290.8,0.00036986,14]
[377577511,1754445140323,-1113.65,0.00036986,14]
[377577512,1754445140333,-400.0,0.00036986,14]
[377577513,1754445140342,-400.0,0.00036986,14]
[377577514,1754445140353,-400.0,0.00036986,14]
[377577515,1754445140362,-151.0,0.00036986,7]
[377577516,1754445140371,-400.0,0.00036986,14]
[377577517,1754445140381,-1132.02,0.00036986,14]
[377577518,1754445140390,-400.0,0.00036986,14]
[377577519,1754445140400,-400.0,0.00036986,14]
[377577520,1754445140409,-400.0,0.00036986,14]
[377577521,1754445140567,-880.55,0.00036986,14]
[377577522,1754445140578,-632.81,0.00036986,14]
[377577523,1754445140588,-1935.98,0.00036986,14]
[377577524,1754445140597,-432.07,0.00036986,14]
[377577525,1754445140607,-565.44,0.00036986,14]
[377577526,1754445140616,-2058.7,0.00036986,14]
[377577527,1754445140625,-2459.29,0.00036986,14]
[377577528,1754445140636,-952.79,0.00036986,14]
[377577529,1754445140645,-436.49649776,0.00036986,14]
[377577530,1754445140657,-400.0,0.00036986,14]
[377577531,1754445140667,-400.0,0.00036986,14]
[377577532,1754445140676,-400.0,0.00036986,14]
[377577533,1754445140685,-400.0,0.00036986,14]
[377577534,1754445140694,-651.88,0.00036986,14]
[377577535,1754445140703,-1468.29,0.00036986,14]
[377577536,1754445140713,-1615.6,0.00036986,14]
[377577537,1754445140722,-400.0,0.00036986,14]
[377577538,1754445140732,-400.0,0.00036986,14]
[377577539,1754445140742,-620.14,0.00036986,14]
[377577540,1754445140753,-400.0,0.00036986,14]
[377577541,1754445140763,-890.38,0.00036986,14]
[377577542,1754445140773,-1200.18,0.00036986,14]
[377577543,1754445140783,-1559.95,0.00036986,14]
[377577544,1754445140792,-554.46,0.00036986,14]
[377577545,1754445140802,-400.0,0.00036986,14]
[377577546,1754445140812,-740.32,0.00036986,14]
[377577547,1754445140822,-3323.49,0.00036986,14]
[377577548,1754445140831,-1792.71,0.00036986,14]
[377577549,1754445140843,-400.0,0.00036986,14]
[377577550,1754445140855,-670.67,0.00036986,14]
[377577551,1754445140864,-400.0,0.00036986,14]
[377577552,1754445140873,-400.0,0.00036986,14]
[377577553,1754445140884,-239.15346841,0.00036986,14]
[377577554,1754445140893,-423.31,0.00036986,14]
[377577555,1754445140903,-400.0,0.00036986,14]
[377577556,1754445140912,-400.0,0.00036986,14]
[377577557,1754445140923,-400.0,0.00036986,14]
[377577558,1754445140932,-629.22,0.00036986,14]
[377577559,1754445140941,-1278.36,0.00036986,14]
[377577560,1754445140950,-605.83,0.00036986,14]
[377577561,1754445140960,-1742.73,0.00036986,14]
[377577562,1754445140970,-840.63,0.00036986,14]
[377577563,1754445140979,-258.7138176,0.00036986,14]
[377577564,1754445140988,-2115.6,0.00036986,14]
[377577565,1754445140998,-400.0,0.00036986,14]
[377577566,1754445141008,-1594.04,0.00036986,14]
[377577567,1754445141018,-2121.86,0.00036986,14]
[377577568,1754445141027,-1906.92,0.00036986,14]
[377577569,1754445141037,-400.0,0.00036986,14]
[377577570,1754445141046,-400.0,0.00036986,14]
[377577571,1754445141055,-2029.65,0.00036986,14]
[377577572,1754445141064,-1284.54,0.00036986,14]
[377577573,1754445141074,-639.18,0.00036986,14]
[377577574,1754445141084,-400.0,0.00036986,14]
[377577575,1754445141094,-400.0,0.00036986,14]
[377577576,1754445141103,-867.89,0.00036986,14]
[377577577,1754445141112,-400.0,0.00036986,14]
[377577578,1754445141121,-768.12,0.00036986,14]
[377577579,1754445141130,-1728.43,0.00036986,14]
[377577580,1754445141140,-986.68,0.00036986,14]
[377577581,1754445141149,-400.0,0.00036986,2]
[377577582,1754445141159,-401.24990566,0.00036986,14]
[377577583,1754445141169,-1056.28,0.00036986,14]
[377577584,1754445141178,-1087.98,0.00036986,14]
[377577585,1754445141187,-1331.35,0.00036986,14]
[377577586,1754445141196,-818.29,0.00036986,2]
[377577587,1754445141205,-400.0,0.00036986,14]
[377577588,1754445141214,-400.0,0.00036986,14]
[377577589,1754445141223,-1671.93,0.00036986,14]
[377577590,1754445141232,-915.29,0.00036986,14]
[377577591,1754445141241,-400.0,0.00036986,14]
[377577592,1754445141251,-987.79,0.00036986,14]
[377577593,1754445141259,-400.0,0.00036986,14]
[377577594,1754445141268,-400.0,0.00036986,2]
[377577595,1754445141278,-1706.07,0.00036986,14]
[377577596,1754445141287,-400.0,0.00036986,14]
[377577597,1754445141297,-482.90021381,0.00036986,14]
[377577598,1754445141306,-400.0,0.00036986,14]
[377577599,1754445141316,-400.0,0.00036986,14]
[377577600,1754445141326,-2398.75,0.00036986,14]
[377577601,1754445141336,-1209.91,0.00036986,14]
[377577602,1754445141345,-4680.28,0.00036986,14]
[377577603,1754445141355,-787.03,0.00036986,14]
[377577604,1754445141364,-1250.29,0.00036986,14]
[377577605,1754445141374,-850.29,0.00036986,14]
[377577606,1754445141383,-400.0,0.00036986,14]
[377577607,1754445141393,-453.59,0.00036986,14]
[377577608,1754445141401,-400.0,0.00036986,14]
[377577609,1754445141410,-2065.74,0.00036986,14]
[377577610,1754445141419,-400.0,0.00036986,14]
[377577611,1754445141429,-400.0,0.00036986,14]
[377577612,1754445141438,-400.0,0.00036986,14]
[377577613,1754445141448,-1925.3,0.00036986,14]
[377577614,1754445141458,-449.51,0.00036986,14]
[377577615,1754445141467,-802.3,0.00036986,14]
[377577616,1754445141476,-1899.36,0.00036986,14]
[377577617,1754445141485,-400.0,0.00036986,14]
[377577618,1754445141495,-400.0,0.00036986,14]
[377577619,1754445141504,-693.92,0.00036986,14]
[377577620,1754445141513,-435.26916505,0.00036986,14]
[377577621,1754445141523,-827.55,0.00036986,14]
[377577622,1754445141532,-1605.43,0.00036986,14]
[377577623,1754445141541,-723.29,0.00036986,14]
[377577624,1754445141550,-400.0,0.00036986,14]
[377577625,1754445141559,-1841.43,0.00036986,14]
[377577626,1754445141569,-400.0,0.00036986,14]
[377577627,1754445141578,-400.0,0.00036986,14]
[377577628,1754445141587,-400.0,0.00036986,14]
[377577629,1754445141596,-400.0,0.00036986,14]
[377577630,1754445141606,-383.12655975,0.00036986,14]
[377577631,1754445141616,-400.0,0.00036986,14]
[377577632,1754445141625,-2206.71,0.00036986,14]
[377577633,1754445141634,-2337.97,0.00036986,14]
[377577634,1754445141643,-400.0,0.00036986,14]
[377577635,1754445141653,-1457.88,0.00036986,14]
[377577636,1754445141662,-1789.45,0.00036986,14]
[377577637,1754445141671,-2047.12,0.00036986,14]
[377577638,1754445141681,-2197.84,0.00036986,14]
[377577639,1754445141690,-419.66480923,0.00036986,14]
[377577640,1754445141699,-400.0,0.00036986,14]
[377577641,1754445141709,-677.89,0.00036986,14]
[377577642,1754445141718,-2021.48,0.00036986,14]
[377577643,1754445141727,-400.0,0.00036986,14]
[377577644,1754445141736,-565.33,0.00036986,14]
[377577645,1754445141745,-1499.56,0.00036986,14]
[377577646,1754445141760,-464.22452484,0.00036986,2]
[377577647,1754445141769,-400.0,0.00036986,14]
[377577648,1754445141778,-426.85,0.00036986,14]
[377577649,1754445141787,-1904.85,0.00036986,14]
[377577650,1754445141797,-1056.9,0.00036986,14]
[377577651,1754445141808,-400.0,0.00036986,14]
[377577652,1754445141819,-400.0,0.00036986,14]
[377577653,1754445141829,-400.0,0.00036986,14]
[377577654,1754445141839,-461.52,0.00036986,14]
[377577655,1754445141853,-400.0,0.00036986,14]
[377577656,1754445141862,-400.0,0.00036986,14]
[377577657,1754445141872,-151.0,0.00036986,7]
[377577658,1754445141882,-1030.82,0.00036986,14]
[377577659,1754445141892,-1475.54,0.00036986,14]
[377577660,1754445141901,-334.44062082,0.00036986,14]
[377577661,1754445141910,-422.51,0.00036986,14]
[377577662,1754445141920,-400.0,0.00036986,14]
[377577663,1754445141932,-400.0,0.00036986,14]
[377577664,1754445141942,-451.74,0.00036986,14]
[377577665,1754445141952,-912.69,0.00036986,14]
[377577666,1754445141962,-981.32,0.00036986,14]
[377577667,1754445141971,-910.24,0.00036986,14]
[377577668,1754445141980,-1838.27,0.00036986,14]
[377577669,1754445141991,-1750.74,0.00036986,14]
[377577670,1754445142000,-1148.89,0.00036986,14]
[377577671,1754445142009,-489.78,0.00036986,14]
[377577672,1754445142019,-1112.24,0.00036986,14]
[377577673,1754445142028,-3267.86,0.00036986,14]
[377577674,1754445142038,-1269.87,0.00036986,14]
[377577675,1754445142048,-2011.52,0.00036986,14]
[377577676,1754445142058,-400.0,0.00036986,14]
[377577677,1754445142068,-1943.34,0.00036986,14]
[377577678,1754445142078,-400.0,0.00036986,14]
[377577679,1754445142088,-400.0,0.00036986,14]
[377577680,1754445142097,-400.0,0.00036986,14]
[377577681,1754445142108,-400.0,0.00036986,14]
[377577682,1754445142118,-400.0,0.00036986,14]
[377577683,1754445142128,-400.0,0.00036986,14]
[377577684,1754445142137,-462.85,0.00036986,14]
[377577685,1754445142147,-1836.14,0.00036986,14]
[377577686,1754445142157,-2886.93,0.00036986,14]
[377577687,1754445142169,-1923.9,0.00036986,14]
[377577688,1754445142179,-500.55,0.00036986,14]
[377577689,1754445142190,-400.0,0.00036986,14]
[377577690,1754445142201,-788.92,0.00036986,14]
[377577691,1754445142212,-400.0,0.00036986,14]
[377577692,1754445142222,-635.4,0.00036986,14]
[377577693,1754445142231,-400.0,0.00036986,14]
[377577694,1754445142240,-719.56,0.00036986,14]
[377577695,1754445142250,-1842.81,0.00036986,14]
[377577696,1754445142259,-400.0,0.00036986,14]
[377577697,1754445142268,-3804.91,0.00036986,14]
[377577698,1754445142277,-1965.5,0.00036986,14]
[377577699,1754445142287,-664.17,0.00036986,14]
[377577700,1754445142296,-528.91,0.00036986,14]
[377577701,1754445142305,-400.0,0.00036986,14]
[377577702,1754445142314,-400.0,0.00036986,14]
[377577703,1754445142324,-400.0,0.00036986,14]
[377577704,1754445142333,-3285.06,0.00036986,14]
[377577705,1754445142342,-1611.48,0.00036986,14]
[377577706,1754445142351,-400.0,0.00036986,14]
[377577707,1754445142361,-300.0,0.00036986,14]
[377577708,1754445142370,-400.0,0.00036986,14]
[377577709,1754445142379,-400.0,0.00036986,14]
[377577710,1754445142388,-843.81,0.00036986,14]
[377577711,1754445142397,-2286.3,0.00036986,14]
[377577712,1754445142407,-664.72,0.00036986,14]
[377577713,1754445142417,-400.0,0.00036986,14]
[377577714,1754445142426,-400.0,0.00036986,14]
[377577715,1754445142436,-1228.65,0.00036986,14]
[377577716,1754445142446,-817.71,0.00036986,14]
[377577717,1754445142455,-400.0,0.00036986,14]
[377577718,1754445142464,-2285.89,0.00036986,14]
[377577719,1754445142473,-400.0,0.00036986,14]
[377577720,1754445142483,-688.12,0.00036986,14]
[377577721,1754445142492,-481.19566783,0.00036986,14]
[377577722,1754445142502,-400.0,0.00036986,14]
[377577723,1754445142511,-534.6,0.00036986,14]
[377577724,1754445142520,-691.09,0.00036986,14]
[377577725,1754445142529,-400.0,0.00036986,14]
[377577726,1754445142538,-826.81,0.00036986,14]
[377577727,1754445142547,-774.95,0.00036986,14]
[377577728,1754445142556,-707.35,0.00036986,14]
[377577729,1754445142566,-2483.22,0.00036986,14]
[377577730,1754445142575,-2387.79,0.00036986,14]
[377577731,1754445142584,-1988.08,0.00036986,14]
[377577732,1754445142594,-400.0,0.00036986,14]
[377577733,1754445142603,-460.78,0.00036986,14]
[377577734,1754445142613,-400.0,0.00036986,14]
[377577735,1754445142995,-400.0,0.00036986,14]
[377577736,1754445143022,-1013.02,0.00036986,14]
[377577737,1754445143032,-697.09,0.00036986,14]
[377577738,1754445143042,-3032.43,0.00036986,14]
[377577739,1754445143051,-455.45,0.00036986,14]
[377577740,1754445143061,-1325.26,0.00036986,14]
[377577741,1754445143070,-1290.32,0.00036986,14]
[377577742,1754445143080,-1704.34,0.00036986,14]
[377577743,1754445143090,-400.0,0.00036986,14]
[377577744,1754445143100,-2854.84,0.00036986,14]
[377577745,1754445143111,-1254.27,0.00036986,14]
[377577746,1754445143120,-400.0,0.00036986,14]
[377577747,1754445143129,-587.45,0.00036986,14]
[377577748,1754445143138,-400.0,0.00036986,14]
[377577749,1754445143148,-400.0,0.00036986,14]
[377577750,1754445143157,-1693.96,0.00036986,14]
[377577751,1754445143166,-2049.87,0.00036986,14]
[377577752,1754445143175,-990.4,0.00036986,14]
[377577753,1754445143184,-3413.9,0.00036986,14]
[377577754,1754445143194,-400.0,0.00036986,14]
[377577755,1754445143203,-1042.69,0.00036986,14]
[377577756,1754445143212,-1556.67,0.00036986,14]
[377577757,1754445143221,-477.26,0.00036986,14]
[377577758,1754445143230,-400.0,0.00036986,14]
[377577759,1754445143239,-402.35,0.00036986,14]
[377577760,1754445143248,-400.0,0.00036986,14]
[377577761,1754445143258,-400.0,0.00036986,14]
[377577762,1754445143266,-400.0,0.00036986,14]
[377577763,1754445143276,-1286.74,0.00036986,14]
[377577764,1754445143285,-2127.16,0.00036986,14]
[377577765,1754445143294,-400.0,0.00036986,14]
[377577766,1754445143303,-650.36,0.00036986,14]
[377577767,1754445143313,-400.0,0.00036986,14]
[377577768,1754445143322,-164.1571519,0.00036986,14]
[377577769,1754445143332,-1272.91,0.00036986,14]
[377577770,1754445143341,-1978.73,0.00036986,14]
[377577771,1754445143350,-2983.78,0.00036986,14]
[377577772,1754445143361,-400.0,0.00036986,14]
[377577773,1754445143370,-1167.76,0.00036986,14]
[377577774,1754445143380,-537.68,0.00036986,14]
[377577775,1754445143388,-400.0,0.00036986,14]
[377577776,1754445143398,-1618.78,0.00036986,14]
[377577777,1754445143407,-481.3,0.00036986,14]
[377577778,1754445143417,-400.0,0.00036986,14]
[377577779,1754445143425,-1023.05,0.00036986,14]
[377577780,1754445143434,-400.0,0.00036986,14]
[377577781,1754445143443,-400.0,0.00036986,14]
[377577782,1754445143453,-456.75,0.00036986,14]
[377577783,1754445143462,-400.0,0.00036986,14]
[377577784,1754445143472,-400.0,0.00036986,14]
[377577785,1754445143481,-1487.38,0.00036986,14]
[377577786,1754445143490,-423.93,0.00036986,14]
[377577787,1754445143499,-400.0,0.00036986,14]
[377577788,1754445143508,-1101.66,0.00036986,14]
[377577789,1754445143517,-1906.16,0.00036986,14]
[377577790,1754445143526,-1382.08,0.00036986,14]
[377577791,1754445143536,-400.0,0.00036986,14]
[377577792,1754445143545,-566.23,0.00036986,14]
[377577793,1754445143554,-400.0,0.00036986,14]
[377577794,1754445143563,-1089.74,0.00036986,14]
[377577795,1754445143573,-1123.2,0.00036986,14]
[377577796,1754445143582,-400.0,0.00036986,14]
[377577797,1754445143592,-1398.154307,0.00036986,14]
[377577798,1754445143601,-1620.16,0.00036986,14]
[377577799,1754445143612,-400.0,0.00036986,14]
[377577800,1754445143622,-825.89,0.00036986,14]
[377577801,1754445143631,-554.16,0.00036986,14]
[377577802,1754445143641,-400.0,0.00036986,14]
[377577803,1754445143651,-400.0,0.00036986,14]
[377577804,1754445143660,-2526.57,0.00036986,14]
[377577805,1754445143669,-1043.57,0.00036986,14]
[377577806,1754445143679,-400.0,0.00036986,14]
[377577807,1754445143688,-400.0,0.00036986,14]
[377577808,1754445143697,-400.0,0.00036986,14]
[377577809,1754445143706,-400.0,0.00036986,14]
[377577810,1754445143716,-978.27,0.00036986,14]
[377577811,1754445143724,-400.0,0.00036986,14]
[377577812,1754445143734,-1121.455681,0.00036986,14]
[377577813,1754445143743,-870.7,0.00036986,14]
[377577814,1754445143753,-400.0,0.00036986,14]
[377577815,1754445143763,-1579.29,0.00036986,14]
[377577816,1754445143772,-2370.33,0.00036986,14]
[377577817,1754445143782,-400.0,0.00036986,14]
[377577818,1754445143791,-1431.57,0.00036986,14]
[377577819,1754445143802,-766.55,0.00036986,14]
[377577820,1754445143814,-1157.79,0.00036986,14]
[377577821,1754445143824,-400.0,0.00036986,14]
[377577822,1754445143833,-400.0,0.00036986,14]
[377577823,1754445143844,-1586.040996,0.00036986,14]
[377577824,1754445143857,-2107.14,0.00036986,14]
[377577825,1754445143866,-803.41,0.00036986,14]
[377577826,1754445143876,-189.14133231,0.00036986,14]
[377577827,1754445143886,-400.0,0.00036986,14]
[377577828,1754445143895,-509.96,0.00036986,14]
[377577829,1754445143905,-400.0,0.00036986,14]
[377577830,1754445143915,-400.0,0.00036986,14]
[377577831,1754445143925,-1003.35,0.00036986,14]
[377577832,1754445143935,-445.22,0.00036986,14]
[377577833,1754445143944,-400.0,0.00036986,14]
[377577834,1754445143954,-400.0,0.00036986,14]
[377577835,1754445143963,-1001.5,0.00036986,14]
[377577836,1754445143972,-2459.31,0.00036986,14]
[377577837,1754445143982,-243.385005,0.00036986,14]
[377577838,1754445143992,-596.41,0.00036986,14]
[377577839,1754445144001,-1798.86,0.00036986,14]
[377577840,1754445144011,-400.0,0.00036986,14]
[377577841,1754445144020,-163.835228,0.00036986,14]
[377577842,1754445144029,-1145.0,0.00036986,14]
[377577843,1754445144039,-400.0,0.00036986,14]
[377577844,1754445144047,-400.0,0.00036986,14]
[377577845,1754445144057,-400.0,0.00036986,14]
[377577846,1754445144066,-859.74,0.00036986,14]
[377577847,1754445144075,-400.0,0.00036986,14]
[377577848,1754445144084,-400.0,0.00036986,14]
[377577849,1754445144093,-2751.78,0.00036986,14]
[377577850,1754445144102,-416.83,0.00036986,14]
[377577851,1754445144112,-1520.4,0.00036986,14]
[377577852,1754445144122,-400.0,0.00036986,14]
[377577853,1754445144131,-1527.37,0.00036986,14]
[377577854,1754445144141,-439.67,0.00036986,14]
[377577855,1754445144150,-400.0,0.00036986,14]
[377577856,1754445144159,-1607.76,0.00036986,14]
[377577857,1754445144168,-2046.3,0.00036986,14]
[377577858,1754445144178,-2962.64,0.00036986,14]
[377577859,1754445144189,-400.0,0.00036986,14]
[377577860,1754445144199,-400.0,0.00036986,14]
[377577861,1754445144210,-400.0,0.00036986,14]
[377577862,1754445144220,-400.0,0.00036986,14]
[377577863,1754445144234,-1827.77,0.00036986,14]
[377577864,1754445144243,-400.0,0.00036986,14]
[377577865,1754445144252,-400.0,0.00036986,14]
[377577866,1754445144261,-2171.96,0.00036986,14]
[377577867,1754445144270,-2284.3,0.00036986,14]
[377577868,1754445144280,-400.0,0.00036986,14]
[377577869,1754445144289,-400.0,0.00036986,14]
[377577870,1754445144298,-1380.46,0.00036986,14]
[377577871,1754445144308,-400.0,0.00036986,14]
[377577872,1754445144317,-977.84,0.00036986,14]
[377577873,1754445144325,-459.21,0.00036986,14]
[377577874,1754445144334,-400.0,0.00036986,14]
[377577875,1754445144343,-400.0,0.00036986,14]
[377577876,1754445144355,-1461.2,0.00036986,14]
[377577877,1754445144364,-796.51,0.00036986,14]
[377577878,1754445144373,-400.0,0.00036986,14]
[377577879,1754445144383,-400.0,0.00036986,14]
[377577880,1754445144395,-400.0,0.00036986,14]
[377577881,1754445144406,-400.0,0.00036986,14]
[377577882,1754445144417,-2614.37,0.00036986,14]
[377577883,1754445144426,-1923.74,0.00036986,14]
[377577884,1754445144435,-769.37,0.00036986,14]
[377577885,1754445144445,-400.0,0.00036986,14]
[377577886,1754445144455,-1290.75,0.00036986,14]
[377577887,1754445144467,-1352.85,0.00036986,14]
[377577888,1754445144477,-1209.54,0.00036986,14]
[377577889,1754445144487,-757.96,0.00036986,14]
[377577890,1754445144496,-754.97,0.00036986,14]
[377577891,1754445144506,-841.08,0.00036986,14]
[377577892,1754445144515,-2094.9,0.00036986,14]
[377577893,1754445144524,-772.6,0.00036986,14]
[377577894,1754445144534,-624.89,0.00036986,14]
[377577895,1754445144543,-400.0,0.00036986,14]
[377577896,1754445144552,-2492.87,0.00036986,14]
[377577897,1754445144561,-400.0,0.00036986,14]
[377577898,1754445144570,-400.0,0.00036986,14]
[377577899,1754445144580,-340.72635811,0.00036986,14]
[377577900,1754445144590,-1272.84,0.00036986,14]
[377577901,1754445144599,-400.0,0.00036986,14]
[377577902,1754445144610,-637.27,0.00036986,14]
[377577903,1754445144620,-1611.84,0.00036986,14]
[377577904,1754445144628,-416.88319263,0.00036986,14]
[377577905,1754445144638,-2718.79,0.00036986,14]
[377577906,1754445144647,-1692.25,0.00036986,14]
[377577907,1754445144657,-400.0,0.00036986,14]
[377577908,1754445144668,-652.68,0.00036986,14]
[377577909,1754445144678,-1591.38,0.00036986,14]
[377577910,1754445144687,-1943.43,0.00036986,14]
[377577911,1754445144696,-400.0,0.00036986,14]
[377577912,1754445144706,-298.04520196,0.00036986,14]
[377577913,1754445144715,-756.43,0.00036986,14]
[377577914,1754445144725,-1315.11,0.00036986,14]
[377577915,1754445144734,-400.0,0.00036986,14]
[377577916,1754445144743,-400.0,0.00036986,14]
[377577917,1754445144753,-2237.96,0.00036986,14]
[377577918,1754445144763,-420.22,0.00036986,14]
[377577919,1754445144772,-400.0,0.00036986,14]
[377577920,1754445144782,-1894.82,0.00036986,14]
[377577921,1754445144792,-819.6,0.00036986,14]
[377577922,1754445144801,-2053.25,0.00036986,14]
[377577923,1754445144810,-865.96,0.00036986,14]
[377577924,1754445144820,-2575.51,0.00036986,14]
[377577925,1754445144830,-400.0,0.00036986,14]
[377577926,1754445144839,-400.0,0.00036986,14]
[377577927,1754445144850,-2031.47,0.00036986,14]
[377577928,1754445144860,-1871.26,0.00036986,14]
[377577929,1754445144872,-1397.46,0.00036986,14]
[377577930,1754445144883,-400.0,0.00036986,14]
[377577931,1754445144892,-400.0,0.00036986,14]
[377577932,1754445144901,-1450.07,0.00036986,14]
[377577933,1754445144911,-400.0,0.00036986,14]
[377577934,1754445144920,-1199.57,0.00036986,14]
[377577935,1754445144930,-441.04,0.00036986,14]
[377577936,1754445144940,-400.0,0.00036986,14]
[377577937,1754445144949,-400.0,0.00036986,14]
[377577938,1754445144958,-400.0,0.00036986,14]
[377577939,1754445144968,-1209.5,0.00036986,14]
[377577940,1754445144977,-400.0,0.00036986,14]
[377577941,1754445144986,-418.92,0.00036986,14]
[377577942,1754445144996,-400.0,0.00036986,14]
[377577943,1754445145006,-400.0,0.00036986,14]
[377577944,1754445145016,-400.0,0.00036986,14]
[377577945,1754445145025,-3525.98,0.00036986,14]
[377577946,1754445145035,-1221.92,0.00036986,14]
[377577947,1754445145044,-1752.0,0.00036986,14]
[377577948,1754445145056,-473.14,0.00036986,14]
[377577949,1754445145066,-400.0,0.00036986,14]
[377577950,1754445145076,-2230.94,0.00036986,14]
[377577951,1754445145085,-1237.41,0.00036986,14]
[377577952,1754445145095,-1920.97,0.00036986,14]
[377577953,1754445145104,-526.37,0.00036986,14]
[377577954,1754445145114,-927.89,0.00036986,14]
[377577955,1754445145123,-400.0,0.00036986,14]
[377577956,1754445145133,-400.0,0.00036986,14]
[377577957,1754445145144,-400.0,0.00036986,14]
[377577958,1754445145153,-400.0,0.00036986,14]
[377577959,1754445145162,-1273.79,0.00036986,14]
[377577960,1754445145172,-400.0,0.00036986,14]
[377577961,1754445145181,-400.0,0.00036986,14]
[377577962,1754445145190,-400.0,0.00036986,14]
[377577963,1754445145200,-2062.42,0.00036986,14]
[377577964,1754445145210,-2103.57,0.00036986,14]
[377577965,1754445145220,-650.32,0.00036986,14]
[377577966,1754445145230,-400.0,0.00036986,14]
[377577967,1754445145239,-2044.76,0.00036986,14]
[377577968,1754445145250,-1965.21,0.00036986,14]
[377577969,1754445145260,-733.36,0.00036986,14]
[377577970,1754445145270,-514.18,0.00036986,14]
[377577971,1754445145280,-400.0,0.00036986,14]
[377577972,1754445145290,-1869.68,0.00036986,14]
[377577973,1754445145299,-1998.0,0.00036986,14]
[377577974,1754445145308,-1802.74,0.00036986,14]
[377577975,1754445145318,-400.0,0.00036986,14]
[377577976,1754445145327,-2287.14,0.00036986,14]
[377577977,1754445145453,-400.0,0.00036986,14]
[377577978,1754445145462,-403.94,0.00036986,14]
[377577979,1754445145471,-522.06,0.00036986,14]